bitfinex-derivatives/quotes_BNBF0:USTF0_20250529
["timestamp","ask_amount","ask_price","bid_price","bid_amount"]
[1748486234203,0.28959485,690.62,688.26,0.55856291]
[1748486234404,0.28959485,690.62,688.27,0.55856367]
[1748486234602,0.28959485,690.62,688.28,0.55856367]
[1748486234899,0.28959485,690.62,688.29,0.55856367]
[1748486235202,0.28959485,690.62,688.3,0.55856367]
[1748486235401,0.28959485,690.62,688.31,0.55856367]
[1748486235599,0.28959485,690.62,688.32,0.55856367]
[1748486235902,0.28959485,690.62,688.17,0.603]
[1748486235903,0.28959485,690.62,688.33,0.55849033]
[1748486236098,0.28959485,690.62,688.34,0.55849033]
[1748486236298,0.28959485,690.62,688.35,0.5584941]
[1748486236504,0.28959485,690.62,688.36,0.55850712]
[1748486236700,0.28959485,690.62,688.37,0.55850712]
[1748486237002,0.28959485,690.62,688.17,0.603]
[1748486237198,0.28959485,690.62,688.18,0.55846288]
[1748486237502,0.28959485,690.62,688.19,0.55846288]
[1748486237703,0.28959485,690.62,688.2,0.55846288]
[1748486237903,0.28959485,690.62,688.19,0.713]
[1748486237904,0.28959485,690.62,688.21,0.55846288]
[1748486238104,0.28959485,690.62,688.22,0.55846288]
[1748486238301,0.28959485,690.62,688.23,0.55846288]
[1748486238505,0.28959485,690.62,688.24,0.55845162]
[1748486238704,0.28959485,690.62,688.19,0.713]
[1748486239001,0.28959485,690.62,688.2,0.55845146]
[1748486239201,0.28959485,690.62,688.21,0.55845146]
[1748486239407,0.28959485,690.62,688.22,0.55845146]
[1748486239705,0.28959485,690.62,688.19,0.713]
[1748486239706,0.28959485,690.62,688.23,0.55845146]
[1748486239905,0.28959485,690.62,688.24,0.55862508]
[1748486240106,0.28959485,690.62,688.19,0.713]
[1748486240303,0.28959485,690.62,688.2,0.55862393]
[1748486240506,0.28959485,690.62,688.21,0.55862393]
[1748486240808,0.28959485,690.62,688.22,1.04881203]
[1748486241002,0.28959485,690.62,688.23,0.55881203]
[1748486241205,0.28959485,690.62,688.24,0.55881203]
[1748486241407,0.28959485,690.62,688.25,0.55882148]
[1748486241607,0.28959485,690.62,688.26,0.55882918]
[1748486241803,0.28959485,690.62,688.27,0.55907388]
[1748486242003,0.28959485,690.62,688.28,0.55907388]
[1748486242205,0.28959485,690.62,688.29,0.55907388]
[1748486242404,0.28959485,690.62,688.3,0.55907388]
[1748486242611,0.28959485,690.62,688.31,0.55877914]
[1748486242808,0.28959485,690.62,688.32,0.55877914]
[1748486243110,0.28959485,690.62,688.33,0.55877914]
[1748486243407,0.28959485,690.62,688.34,0.55877914]
[1748486243602,0.28959485,690.62,688.35,0.55877914]
[1748486243808,0.28959485,690.62,688.36,0.55877914]
[1748486244006,0.28959485,690.62,688.37,0.55877914]
[1748486244204,0.28959485,690.62,688.38,0.55877914]
[1748486244405,0.28959485,690.62,688.39,0.55877914]
[1748486244606,0.28959485,690.62,688.4,0.55877914]
[1748486244803,0.28959485,690.62,688.41,0.55912131]
[1748486245109,0.28959485,690.62,688.42,0.55912118]
[1748486245408,0.28959485,690.62,688.43,0.55912118]
[1748486245605,0.28959485,690.62,688.44,0.55912118]
[1748486245810,0.28959485,690.62,688.45,0.55912118]
[1748486246007,0.28959485,690.62,688.46,0.55912118]
[1748486246203,0.28959485,690.62,688.22,0.49]
[1748486246204,0.28959485,690.62,688.47,0.55912118]
[1748486246508,0.28959485,690.62,688.22,0.49]
[1748486246509,0.28959485,690.62,688.48,0.55933466]
[1748486246804,0.28959485,690.62,688.49,0.55934739]
[1748486247002,0.28959485,690.62,688.5,0.55934739]
[1748486247308,0.28959485,690.62,688.51,0.55958206]
[1748486247603,0.28959485,690.62,688.22,0.49]
[1748486247804,0.28959485,690.62,688.23,0.55958111]
[1748486248006,0.28959485,690.62,688.22,0.49]
[1748486248203,0.28959485,690.62,688.23,0.55960424]
[1748486248407,0.28959485,690.62,688.24,0.55960424]
[1748486248603,0.28959485,690.62,688.25,0.55960424]
[1748486248805,0.28959485,690.62,688.26,0.55960424]
[1748486249002,0.28959485,690.62,688.27,0.55960424]
[1748486249202,0.28959485,690.62,688.28,0.55960424]
[1748486249406,0.28959485,690.62,688.29,0.56012793]
[1748486249602,0.28959485,690.62,688.3,0.56012793]
[1748486249807,0.28959485,690.62,688.31,0.56012793]
[1748486250004,0.28959485,690.62,688.32,0.56012793]
[1748486250207,0.28959485,690.62,688.33,0.56012793]
[1748486250503,0.28959485,690.62,688.34,0.56012793]
[1748486250704,0.28959485,690.62,688.22,0.49]
[1748486250906,0.28959485,690.62,688.23,0.56030316]
[1748486251105,0.28959485,690.62,688.24,0.56030316]
[1748486251305,0.28959485,690.62,688.25,0.56030312]
[1748486251507,0.28959485,690.62,688.26,0.56030312]
[1748486251705,0.28959485,690.62,688.22,0.49]
[1748486251908,0.28959485,690.62,688.23,0.56049987]
[1748486252109,0.28959485,690.62,688.24,0.56049987]
[1748486252410,0.28959485,690.62,688.25,0.56049987]
[1748486252607,0.28959485,690.62,688.26,0.56049987]
[1748486252809,0.28959485,690.62,688.27,0.56049987]
[1748486253010,0.28959485,690.62,688.28,0.56064915]
[1748486253210,0.28959485,690.62,688.29,0.56074832]
[1748486253409,0.28959485,690.62,688.3,0.56074771]
[1748486253611,0.28959485,690.62,688.31,0.56074771]
[1748486253811,0.28959485,690.62,688.32,0.56074771]
[1748486254010,0.28959485,690.62,688.33,0.56074771]
[1748486254211,0.28959485,690.62,688.34,0.56074771]
[1748486254512,0.28959485,690.62,688.35,0.56112155]
[1748486254707,0.28959485,690.62,688.36,0.56112155]
[1748486254909,0.28959485,690.62,688.37,0.56112155]
[1748486255108,0.28959485,690.62,688.38,0.56111891]
[1748486255410,0.28959485,690.62,688.22,0.49]
[1748486255713,0.28959485,690.62,688.23,0.56125674]
[1748486256013,0.28959485,690.62,688.22,0.49]
[1748486256614,0.28959485,690.62,688.23,0.56124629]
[1748486257613,0.28959485,690.62,688.24,0.56125135]
[1748486257913,0.28959485,690.62,688.25,0.56136615]
[1748486258113,0.28959485,690.62,688.26,0.56136615]
[1748486258312,0.28959485,690.62,688.27,0.56136615]
[1748486258613,0.28959485,690.62,688.28,0.56136615]
[1748486258813,0.28959485,690.62,688.29,0.56148514]
[1748486259014,0.28959485,690.62,688.3,0.56148514]
[1748486259213,0.28959485,690.62,688.23,0.56124629]
[1748486259214,0.28959485,690.62,688.31,0.56148514]
[1748486259408,0.28959485,690.62,688.32,0.56148606]
[1748486259608,0.28959485,690.62,688.33,0.56148606]
[1748486259909,0.28959485,690.62,688.34,0.56148606]
[1748486260114,0.28959485,690.62,688.35,0.56162578]
[1748486260316,0.28959485,690.62,688.36,0.56162578]
[1748486260516,0.28959485,690.62,688.37,0.56162902]
[1748486260717,0.28959485,690.62,688.38,0.56177491]
[1748486260917,0.28959485,690.62,688.39,0.56177491]
[1748486261112,0.28959485,690.62,688.23,0.56124629]
[1748486261113,0.28959485,690.62,688.4,0.56177491]
[1748486261315,0.28959485,690.62,688.41,0.56177491]
[1748486261514,0.28959485,690.62,688.23,0.56124629]
[1748486261515,0.28959485,690.62,688.42,0.56177491]
[1748486261719,0.28959485,690.62,688.43,0.56177491]
[1748486261916,0.28959485,690.62,688.44,0.56177491]
[1748486262113,0.28959485,690.62,688.45,0.56192086]
[1748486262317,0.28959485,690.62,688.46,0.56192086]
[1748486262517,0.28959485,690.62,688.47,0.56192086]
[1748486262717,0.28959485,690.62,688.48,0.56192086]
[1748486263017,0.28959485,690.62,688.49,0.56192086]
[1748486263214,0.28959485,690.62,688.5,0.56192086]
[1748486263413,0.28959485,690.62,688.51,0.56192086]
[1748486263619,0.28959485,690.62,688.52,0.56198146]
[1748486263919,0.28959485,690.62,688.53,0.56198146]
[1748486264114,0.28959485,690.62,688.54,0.56198267]
[1748486264318,0.28959485,690.62,688.55,0.56198267]
[1748486264518,0.28959485,690.62,688.56,0.56198267]
[1748486264818,0.28959485,690.62,688.57,0.56202689]
[1748486265119,0.28959485,690.62,688.58,0.56202689]
[1748486265319,0.28959485,690.62,688.59,0.56202131]
[1748486265618,0.28959485,690.62,688.6,0.56202081]
[1748486265818,0.28959485,690.62,688.23,0.56124629]
[1748486266018,0.28959485,690.62,688.24,0.56205501]
[1748486266214,0.28959485,690.62,688.25,0.56205501]
[1748486266418,0.28959485,690.62,688.26,0.56205501]
[1748486266719,0.28959485,690.62,688.27,0.56212201]
[1748486266919,0.28959485,690.62,688.28,0.56212201]
[1748486267220,0.28959485,690.62,688.23,0.56124629]
[1748486267521,0.28959485,690.62,688.24,0.56212306]
[1748486267819,0.28959485,690.62,688.25,0.56212306]
[1748486268016,0.28959485,690.62,688.26,0.56212306]
[1748486268320,0.28959485,690.62,688.27,0.56212088]
[1748486268614,0.28959485,690.62,688.28,0.56212088]
[1748486268818,0.28959485,690.62,688.23,0.56124629]
[1748486268819,0.28959485,690.62,688.29,0.56212088]
[1748486269018,0.28959485,690.62,688.3,0.56212088]
[1748486269220,0.28959485,690.62,688.31,0.56212088]
[1748486269415,0.28959485,690.62,688.32,0.56212088]
[1748486269618,0.28959485,690.62,688.33,0.56212088]
[1748486269820,0.28959485,690.62,688.23,0.56124629]
[1748486270020,0.28959485,690.62,688.24,0.56207762]
[1748486270221,0.28959485,690.62,688.23,0.56124629]
[1748486270721,0.28959485,690.62,688.24,0.56207314]
[1748486270920,0.28959485,690.62,688.25,0.56207314]
[1748486271120,0.28959485,690.62,688.26,0.56207314]
[1748486271319,0.28959485,690.62,688.27,0.56207314]
[1748486271521,0.28959485,690.62,688.28,0.56207314]
[1748486271723,0.28959485,690.62,688.23,0.56124629]
[1748486272022,0.28959485,690.62,688.24,0.56176749]
[1748486272225,0.28959485,690.62,688.25,0.56176658]
[1748486272420,0.28959485,690.62,688.26,0.56176658]
[1748486272616,0.28959485,690.62,688.23,0.56124629]
[1748486272822,0.28959485,690.62,688.24,0.56158375]
[1748486273022,0.28959485,690.62,688.25,0.56158375]
[1748486273222,0.28959485,690.62,688.26,0.56158375]
[1748486273518,0.28959485,690.62,688.27,0.56143049]
[1748486273722,0.28959485,690.62,688.28,0.56143049]
[1748486274021,0.28959485,690.62,688.29,0.56143443]
[1748486274226,0.28959485,690.62,688.3,0.56143443]
[1748486274425,0.28959485,690.62,688.31,0.56143443]
[1748486274625,0.28959485,690.62,688.32,0.56143443]
[1748486274926,0.28959485,690.62,688.33,0.56131405]
[1748486275224,0.28959485,690.62,688.34,0.56131405]
[1748486275423,0.28959485,690.62,688.35,0.56131405]
[1748486275620,0.28959485,690.62,688.36,0.56131405]
[1748486275820,0.28959485,690.62,688.37,0.56131405]
[1748486276019,0.28959485,690.62,688.38,0.56131405]
[1748486276224,0.28959485,690.62,688.39,0.56131405]
[1748486276422,0.28959485,690.62,688.4,0.56125938]
[1748486276621,0.28959485,690.62,688.41,0.56118178]
[1748486276821,0.28959485,690.62,688.42,0.56118178]
[1748486277027,0.28959485,690.62,688.43,0.56118227]
[1748486277227,0.28959485,690.62,688.44,0.56118227]
[1748486277523,0.28959485,690.62,688.45,0.56118227]
[1748486277722,0.28959485,690.62,688.46,0.56118227]
[1748486277921,0.28959485,690.62,688.47,0.56118227]
[1748486278127,0.28959485,690.62,688.48,0.56111071]
[1748486278327,0.28959485,690.62,688.49,0.56111071]
[1748486278522,0.28959485,690.62,688.5,0.56105486]
[1748486278722,0.28959485,690.62,688.51,0.56105483]
[1748486279025,0.28959485,690.62,688.52,0.56105483]
[1748486279328,0.28959485,690.62,688.53,0.56105483]
[1748486279530,0.28959485,690.62,688.54,0.56100178]
[1748486279726,0.28959485,690.62,688.55,0.56100077]
[1748486279924,0.28959485,690.62,688.56,0.56100077]
[1748486280122,0.28959485,690.62,688.57,0.56100077]
[1748486280324,0.28959485,690.62,688.58,0.56100077]
[1748486280525,0.28959485,690.62,688.42,0.588]
[1748486280726,0.28959485,690.62,688.43,0.56100077]
[1748486280924,0.28959485,690.62,688.42,0.588]
[1748486281126,0.28959485,690.62,688.43,0.56099887]
[1748486281432,0.28959485,690.62,688.42,0.588]
[1748486281727,0.28959485,690.62,688.44,0.775]
[1748486281929,0.28959485,690.62,688.45,0.56095417]
[1748486282124,0.28959485,690.62,688.44,0.775]
[1748486282330,0.28959485,690.62,688.45,0.56095817]
[1748486282626,0.28959485,690.62,688.46,0.56091825]
[1748486282925,0.28959485,690.62,688.44,0.775]
[1748486283124,0.28959485,690.62,688.45,0.56091806]
[1748486283328,0.28959485,690.62,688.46,0.56091799]
[1748486283525,0.28959485,690.62,688.47,0.56091208]
[1748486283727,0.28959485,690.62,688.48,0.56091208]
[1748486283929,0.28959485,690.62,688.49,0.56091208]
[1748486284125,0.28959485,690.62,688.5,0.56088428]
[1748486284331,0.28959485,690.62,688.51,0.56088428]
[1748486284629,0.28959485,690.62,688.52,0.56088428]
[1748486284823,0.28959485,690.62,688.53,0.56085409]
[1748486285028,0.28959485,690.62,688.54,0.56085409]
[1748486285229,0.28959485,690.62,688.55,0.56085409]
[1748486285427,0.28959485,690.62,688.56,0.56085409]
[1748486285626,0.28959485,690.62,688.57,0.56081862]
[1748486285825,0.28959485,690.62,688.58,0.56081862]
[1748486286128,0.28959485,690.62,688.59,0.56081862]
[1748486286327,0.28959485,690.62,688.6,0.56081862]
[1748486286527,0.28959485,690.62,688.61,0.56081862]
[1748486286728,0.28959485,690.62,688.62,0.56160579]
[1748486286925,0.28959485,690.62,688.44,0.775]
[1748486287131,0.28959485,690.62,688.45,0.56160613]
[1748486287428,0.28959485,690.62,688.46,0.56160613]
[1748486287632,0.28959485,690.62,688.47,0.56160613]
[1748486287830,0.28959485,690.62,688.48,0.56160613]
[1748486288029,0.28959485,690.62,688.44,0.775]
[1748486288030,0.28959485,690.62,688.49,0.56160613]
[1748486288227,0.28959485,690.62,688.5,0.56158032]
[1748486288427,0.28959485,690.62,688.51,0.56158119]
[1748486288626,0.28959485,690.62,688.52,0.56158119]
[1748486288827,0.28959485,690.62,688.44,0.775]
[1748486288828,0.28959485,690.62,688.53,0.56157649]
[1748486289032,0.28959485,690.62,688.54,0.56157649]
[1748486289327,0.28959485,690.62,688.55,0.56157649]
[1748486289529,0.28959485,690.62,688.56,0.56157649]
[1748486289733,0.28959485,690.62,688.57,0.56157649]
[1748486289928,0.28959485,690.62,688.44,0.775]
[1748486290433,0.28959485,690.62,688.45,0.56154617]
[1748486290636,0.28959485,690.62,688.46,0.56154617]
[1748486290831,0.28959485,690.62,688.44,0.775]
[1748486291030,0.28959485,690.62,688.45,0.56154076]
[1748486291230,0.28959485,690.62,688.44,0.775]
[1748486291430,0.28959485,690.62,688.45,0.56151636]
[1748486291736,0.28959485,690.62,688.46,0.5615094]
[1748486291930,0.28959485,690.62,688.47,0.5615094]
[1748486292130,0.28959485,690.62,688.48,0.5615094]
[1748486292336,0.28959485,690.62,688.49,0.5615094]
[1748486292535,0.28959485,690.62,688.5,0.5615094]
[1748486292735,0.28959485,690.62,688.51,0.5615094]
[1748486292935,0.28959485,690.62,688.52,0.5615094]
[1748486293135,0.28959485,690.62,688.53,0.5614802]
[1748486293337,0.28959485,690.62,688.54,0.5614802]
[1748486293535,0.28959485,690.62,688.55,0.5614741]
[1748486293839,0.28959485,690.62,688.56,0.56147179]
[1748486294032,0.28959485,690.62,688.57,0.56147179]
[1748486294232,0.28959485,690.62,688.44,0.775]
[1748486294439,0.28959485,690.62,688.45,0.56147179]
[1748486294638,0.28959485,690.62,688.46,0.56147179]
[1748486294937,0.28959485,690.62,688.47,0.56147179]
[1748486295132,0.28959485,690.62,688.48,0.56147179]
[1748486295333,0.28959485,690.62,688.49,0.56146173]
[1748486295536,0.28959485,690.62,688.5,0.56146173]
[1748486295738,0.28959485,690.62,688.51,0.56146173]
[1748486295938,0.28959485,690.62,688.44,0.775]
[1748486295939,0.28959485,690.62,688.52,0.56146173]
[1748486296139,0.28959485,690.62,688.53,0.56145616]
[1748486296338,0.28959485,690.62,688.54,0.56145616]
[1748486296534,0.28959485,690.62,688.44,0.775]
[1748486296535,0.28959485,690.62,688.55,0.56145616]
[1748486296734,0.28959485,690.62,688.56,0.56145616]
[1748486296933,0.28959485,690.62,688.44,0.775]
[1748486296934,0.28959485,690.62,688.57,0.56145616]
[1748486297138,0.28959485,690.62,688.58,0.56145466]
[1748486297439,0.28959485,690.62,688.59,0.5614472]
[1748486297639,0.28959485,690.62,688.6,0.5614472]
[1748486297840,0.28959485,690.62,688.61,0.5614472]
[1748486298139,0.28959485,690.62,688.62,1.2874472]
[1748486298339,0.28959485,690.62,688.63,0.5614472]
[1748486298634,0.28959485,690.62,688.62,0.726]
[1748486298635,0.28959485,690.62,688.64,0.56145285]
[1748486298834,0.28959485,690.62,688.62,0.726]
[1748486298835,0.28959485,690.62,688.65,0.56145235]
[1748486299035,0.28959485,690.62,688.62,0.726]
[1748486299234,0.28959485,690.62,688.63,0.56146279]
[1748486299437,0.28959485,690.62,688.64,0.56146279]
[1748486299636,0.28959485,690.62,688.65,0.56146279]
[1748486299839,0.28959485,690.62,688.66,0.56146279]
[1748486300039,0.28959485,690.62,688.67,0.56146279]
[1748486300341,0.28959485,690.62,688.68,0.56146273]
[1748486300538,0.28959485,690.62,688.69,0.56146683]
[1748486300733,0.28959485,690.62,688.7,0.5614682]
[1748486300938,0.28959485,690.62,688.71,0.5614682]
[1748486301140,0.28959485,690.62,688.62,0.726]
[1748486301340,0.28959485,690.62,688.63,0.56147691]
[1748486301534,0.28959485,690.62,688.62,0.726]
[1748486301739,0.28959485,690.62,688.63,1.1229928]
[1748486301935,0.28959485,690.62,688.64,0.56150737]
[1748486302235,0.28959485,690.62,688.65,0.56150737]
[1748486302435,0.28959485,690.62,688.66,0.56150744]
[1748486302634,0.28959485,690.62,688.67,0.56150744]
[1748486302940,0.28959485,690.62,688.68,0.56150744]
[1748486303136,0.28959485,690.62,688.69,0.56151743]
[1748486303335,0.28959485,690.62,688.7,0.56151743]
[1748486303542,0.28959485,690.62,688.71,0.56151799]
[1748486303737,0.28959485,690.62,688.72,0.56151799]
[1748486303933,0.28959485,690.62,688.63,0.56148543]
[1748486304137,0.28959485,690.62,688.64,0.5615533]
[1748486304340,0.28959485,690.62,688.65,0.56158426]
[1748486304536,0.28959485,690.62,688.66,0.56158426]
[1748486304737,0.28959485,690.62,688.67,0.56158426]
[1748486305040,0.28959485,690.62,688.68,0.56158426]
[1748486305240,0.28959485,690.62,688.69,0.56158426]
[1748486305542,0.28959485,690.62,688.7,0.56158426]
[1748486305736,0.28959485,690.62,688.71,0.56162094]
[1748486305936,0.28959485,690.62,688.72,0.56162094]
[1748486306142,0.28959485,690.62,688.73,0.56162094]
[1748486306343,0.28959485,690.62,688.74,0.56161026]
[1748486306542,0.28959485,690.62,688.75,0.56155014]
[1748486306744,0.28959485,690.62,688.76,0.56155825]
[1748486306945,0.28959485,690.62,688.77,0.5615581]
[1748486307142,0.28959485,690.62,688.63,0.56148543]
[1748486307143,0.28959485,690.62,688.78,0.5615581]
[1748486307344,0.28959485,690.62,688.79,0.5615581]
[1748486307538,0.28959485,690.62,688.78,0.737]
[1748486307539,0.28959485,690.62,688.8,0.5615581]
[1748486307746,0.28959485,690.62,688.78,0.737]
[1748486307941,0.28959485,690.62,688.79,0.56151343]
[1748486308146,0.28959485,690.62,688.8,0.56151343]
[1748486308442,0.28959485,690.62,688.78,0.737]
[1748486308746,0.28959485,690.62,688.79,0.56158594]
[1748486309046,0.28959485,690.62,688.78,0.737]
[1748486309247,0.28959485,690.62,688.79,0.56155272]
[1748486309445,0.28959485,690.62,688.78,0.737]
[1748486309947,0.28959485,690.62,688.79,0.5615947]
[1748486310152,0.28959485,690.62,688.8,0.5615947]
[1748486310347,0.28959485,690.62,688.81,0.56167433]
[1748486310553,0.28959485,690.62,688.78,0.737]
[1748486310748,0.28959485,690.62,688.79,0.56164691]
[1748486310950,0.28959485,690.62,688.8,0.56164691]
[1748486311148,0.28959485,690.62,688.78,0.737]
[1748486311350,0.28959485,690.62,688.79,0.56164427]
[1748486311654,0.28959485,690.62,688.8,0.56171553]
[1748486311953,0.28959485,690.62,688.78,0.737]
[1748486312153,0.28959485,690.62,688.79,0.56171788]
[1748486312349,0.28959485,690.62,688.78,0.737]
[1748486312653,0.28959485,690.62,688.79,0.56182684]
[1748486312853,0.28959485,690.62,688.8,0.56182684]
[1748486313054,0.28959485,690.62,688.78,0.737]
[1748486329859,0.28959485,690.62,688.79,0.612]
[1748486334861,0.28959485,690.62,688.8,0.558]
[1748486364176,0.28959485,690.62,688.81,0.677]
[1748486374280,0.25222418,690.17,688.81,0.677]
[1748486374583,0.28979207,690.15,688.82,0.738]
[1748486386798,0.28979207,690.15,688.81,0.677]
[1748486389100,0.28979207,690.15,688.63,0.56148543]
[1748486390504,0.28979207,690.15,688.64,0.747]
[1748486391299,0.28979207,690.15,688.65,0.66]
[1748486428330,0.28979207,690.15,688.63,0.56148543]
[1748486431330,0.28979207,690.15,688.55,0.495]
[1748486456739,0.28979207,690.15,688.03,0.661]
[1748486460644,0.28979207,690.15,688.04,0.583]
[1748486466748,0.28979207,690.15,688.05,0.642]
[1748486481762,0.28979207,690.15,688.04,0.583]
[1748486484269,0.28979207,690.15,688.05,0.599]
[1748486512486,0.28979207,690.15,688.06,0.477]
[1748486518887,0.28979207,690.15,688.07,0.617]
[1748486530997,0.28979207,690.15,688.08,0.56359592]
[1748486531300,0.28979207,690.15,688.07,0.617]
[1748486531499,0.28979207,690.15,688.08,0.56359604]
[1748486531803,0.28979207,690.15,688.09,0.56357162]
[1748486532002,0.28979207,690.15,688.07,0.617]
[1748486532199,0.28979207,690.15,688.08,0.56363789]
[1748486532403,0.28979207,690.15,688.09,0.56363789]
[1748486532604,0.28979207,690.15,688.07,0.617]
[1748486532804,0.28979207,690.15,688.08,0.56360419]
[1748486533001,0.28979207,690.15,688.09,0.56360419]
[1748486533301,0.28979207,690.15,688.07,0.617]
[1748486533498,0.28979207,690.15,688.08,0.56360398]
[1748486533703,0.28979207,690.15,688.09,0.56360398]
[1748486534002,0.28979207,690.15,688.07,0.617]
[1748486534204,0.28979207,690.15,688.08,0.56357312]
[1748486534399,0.28979207,690.15,688.09,0.56357312]
[1748486534601,0.28979207,690.15,688.07,0.617]
[1748486534901,0.28979207,690.15,688.08,0.56354641]
[1748486535207,0.28979207,690.15,688.09,0.56354641]
[1748486535400,0.28979207,690.15,688.07,0.617]
[1748486535602,0.28979207,690.15,688.08,0.56353561]
[1748486535806,0.28979207,690.15,688.07,0.617]
[1748486535807,0.28979207,690.15,688.09,0.56353565]
[1748486536006,0.28979207,690.15,688.07,0.617]
[1748486536208,0.28979207,690.15,688.08,0.56350944]
[1748486536403,0.28979207,690.15,688.09,0.56350937]
[1748486536702,0.28979207,690.15,688.07,0.617]
[1748486536904,0.28979207,690.15,688.08,0.56348372]
[1748486537108,0.28979207,690.15,688.09,0.56348372]
[1748486537303,0.28979207,690.15,688.07,0.617]
[1748486537503,0.28979207,690.15,688.08,0.56348372]
[1748486537703,0.28979207,690.15,688.09,0.56348372]
[1748486537907,0.28979207,690.15,688.06,0.477]
[1748486538101,0.28979207,690.15,688.07,0.56345489]
[1748486538302,0.28979207,690.15,688.08,0.56345489]
[1748486538508,0.28979207,690.15,688.09,0.56345495]
[1748486538707,0.28979207,690.15,688.06,0.477]
[1748486538904,0.28979207,690.15,688.07,0.56343562]
[1748486539208,0.28979207,690.15,688.08,0.56343562]
[1748486539406,0.28979207,690.15,688.09,0.56343699]
[1748486539702,0.28979207,690.15,688.06,0.477]
[1748486540105,0.28979207,690.15,688.07,0.56341232]
[1748486540301,0.28979207,690.15,688.07,0.615]
[1748486540704,0.28979207,690.15,688.08,0.56341327]
[1748486540903,0.28979207,690.15,688.07,0.615]
[1748486541103,0.28979207,690.15,688.08,0.56341328]
[1748486541307,0.28979207,690.15,688.09,0.56341328]
[1748486541504,0.28979207,690.15,688.07,0.615]
[1748486541810,0.28979207,690.15,688.08,0.56339022]
[1748486542004,0.28979207,690.15,688.07,0.615]
[1748486542209,0.28979207,690.15,688.08,0.56339022]
[1748486542409,0.28979207,690.15,688.07,0.615]
[1748486542609,0.28979207,690.15,688.08,0.56337934]
[1748486542904,0.28979207,690.15,688.07,0.615]
[1748486543105,0.28979207,690.15,688.08,0.56336767]
[1748486543304,0.28979207,690.15,688.07,0.615]
[1748486543502,0.28979207,690.15,688.08,0.56335788]
[1748486543706,0.28979207,690.15,688.07,0.615]
[1748486543903,0.28979207,690.15,688.08,0.56335788]
[1748486544113,0.28979207,690.15,688.07,0.615]
[1748486544307,0.28979207,690.15,688.08,0.56334925]
[1748486544505,0.28979207,690.15,688.07,0.615]
[1748486545513,0.28979207,690.15,688.08,0.677]
[1748486554022,0.28979207,690.15,688.09,0.455]
[1748486569137,0.28979207,690.15,688.08,0.677]
[1748486571539,0.28979207,690.15,688.09,0.694]
[1748486574544,0.25273708,689.64,688.09,0.694]
[1748486574744,0.29001479,689.62,688.09,0.694]
[1748486599353,0.29001479,689.62,688.1,0.475]
[1748486617173,0.29001479,689.62,688.11,0.449]
[1748486622082,0.25244465,689.25,688.11,0.449]
[1748486622377,0.29017889,689.23,688.11,0.449]
[1748486647192,0.29017889,689.23,688.1,0.475]
[1748486649187,0.29017889,689.23,688.11,0.659]
[1748486652795,0.29017889,689.23,688.12,0.581]
[1748486688027,0.29017889,689.23,688.11,0.659]
[1748486688926,0.29017889,689.23,688.12,0.56189169]
[1748486689127,0.29017889,689.23,688.13,0.56189]
[1748486689327,0.29017889,689.23,688.11,0.659]
[1748486690328,0.29017889,689.23,687.34,0.46207377]
[1748486690726,0.29017889,689.23,687.35,0.56184649]
[1748486690922,0.29017889,689.23,687.34,0.46207377]
[1748486691330,0.29017889,689.23,687.35,0.5618091]
[1748486691528,0.29017889,689.23,687.35,0.5]
[1748486692230,0.29017889,689.23,687.36,0.56181013]
[1748486692432,0.29017889,689.23,687.35,0.5]
[1748486692627,0.29017889,689.23,687.36,0.463]
[1748486692831,0.29017889,689.23,687.37,0.56180963]
[1748486693033,0.29017889,689.23,687.36,0.463]
[1748486693930,0.29017889,689.23,687.38,0.46207377]
[1748486694630,0.29017889,689.23,687.39,0.46207377]
[1748486695232,0.29017889,689.23,687.4,0.56178156]
[1748486695432,0.29017889,689.23,687.38,0.46207377]
[1748486695731,0.29017889,689.23,687.36,0.463]
[1748486695732,0.29017889,689.23,687.39,0.56188937]
[1748486695926,0.29017889,689.23,687.36,0.463]
[1748486697431,0.29017889,689.23,687.37,0.56210997]
[1748486697631,0.29017889,689.23,687.38,0.56210997]
[1748486697833,0.29017889,689.23,687.39,0.56210997]
[1748486698043,0.29017889,689.23,687.4,0.56250298]
[1748486698335,0.29017889,689.23,687.41,0.56250327]
[1748486698632,0.29017889,689.23,687.42,0.56250327]
[1748486698835,0.29017889,689.23,687.36,0.463]
[1748486699030,0.29017889,689.23,687.43,0.56250327]
[1748486699632,0.29017889,689.23,687.36,0.463]
[1748486700229,0.29017889,689.23,687.37,0.5625037]
[1748486700934,0.29017889,689.23,687.38,0.56250416]
[1748486701436,0.29017889,689.23,687.36,0.463]
[1748486701637,0.29017889,689.23,687.37,0.56250317]
[1748486702639,0.29017889,689.23,687.36,0.463]
[1748486703536,0.29017889,689.23,687.78,0.46207377]
[1748486703834,0.29017889,689.23,687.77,0.46207377]
[1748486704033,0.29017889,689.23,687.78,0.56236272]
[1748486704233,0.29017889,689.23,687.79,0.56236272]